bitfinex/quotes_ETHUSD_20241023
["timestamp","ask_amount","ask_price","bid_price","bid_amount"]
[1729651217867,3.44425,2613.1,2612.6,5.031642]
[1729651219051,3.44434,2613.0,2612.6,1.586882]
[1729651221200,6.88827,2613.2,2612.6,5.031692]
[1729651221402,6.88827,2613.2,2612.7,0.5031692]
[1729651221598,3.44412,2613.2,2612.7,0.5031692]
[1729651221783,3.44412,2613.2,2612.8,0.8187]
[1729651221997,3.44357,2613.6,2613.0,3.44423]
[1729651222180,3.44373,2613.5,2612.9,4.26306]
[1729651222360,3.44379,2613.4,2613.0,0.426306]
[1729651222916,3.4436,2613.6,2613.0,3.870606]
[1729651223275,3.4437,2613.5,2613.0,3.870606]
[1729651223481,4.04241382,2613.8,2613.3,0.8187]
[1729651223676,0.59907382,2613.8,2613.3,4.26254]
[1729651223881,3.44306,2614.0,2613.5,3.44364]
[1729651224098,3.44315,2613.9,2613.4,0.426254]
[1729651224390,3.44315,2613.9,2613.4,3.870034]
[1729651224593,3.44315,2613.9,2613.4,0.426254]
[1729651224905,3.44326,2613.8,2613.4,0.426254]
[1729651226165,6.88663,2613.8,2613.4,0.426254]
[1729651226364,6.88663,2613.8,2613.3,4.2625]
[1729651226365,3.44326,2613.8,2613.3,4.2625]
[1729651227968,6.88663,2613.8,2613.3,4.2625]
[1729651228270,3.44326,2613.8,2613.3,4.2625]
[1729651228778,3.44326,2613.8,2613.3,4.26104101]
[1729651228988,6.88616,2614.0,2613.4,3.4437]
[1729651229302,3.44307,2614.0,2613.4,3.4437]
[1729651229501,3.4432,2613.9,2613.4,3.4437]
[1729651230103,3.44341,2613.7,2613.3,0.81724101]
[1729651230314,3.44341,2613.7,2612.7,1.29972486]
[1729651230315,3.43120124,2613.6,2612.7,1.29972486]
[1729651230518,3.43120124,2613.6,2612.8,6.44445]
[1729651230519,3.44379,2613.4,2612.8,6.44445]
[1729651230810,6.8877,2613.4,2612.8,6.44445]
[1729651231011,3.44379,2613.4,2612.9,1.03922492]
[1729651231401,3.44399,2613.3,2612.8,3.44456]
[1729651231783,3.44429,2613.1,2612.6,3.44477]
[1729651231983,3.44429,2613.1,2612.7,0.8187]
[1729651232481,3.44407,2613.2,2612.7,0.8187]
[1729651232817,3.44428,2613.1,2612.7,0.8187]
[1729651232999,3.44431,2613.0,2612.7,0.8187]
[1729651233587,3.44418,2613.1,2612.7,0.8187]
[1729651234415,3.44407,2613.2,2612.7,0.8187]
[1729651234581,3.44445,2612.9,2612.7,0.8187]
[1729651234781,3.44445,2612.9,2612.4,4.2638]
[1729651236122,3.44445,2612.9,2612.4,0.8187]
[1729651236123,3.44474,2612.7,2612.4,0.8187]
[1729651237123,3.4446,2612.8,2612.4,0.8187]
[1729651237917,3.44448,2612.9,2612.4,4.2638]
[1729651238396,3.44458,2612.8,2612.4,4.2638]
[1729651238799,3.44458,2612.8,2612.4,0.8187]
[1729651238997,3.44471,2612.7,2612.4,0.8187]
[1729651239295,3.44454,2612.9,2612.4,0.8187]
[1729651239484,3.44466,2612.8,2612.4,0.8187]
[1729651241598,3.44479,2612.7,2612.4,0.8187]
[1729651241925,3.44479,2612.7,2612.2,3.44526]
[1729651241926,3.4452,2612.4,2612.1,0.7906]
[1729651242227,3.44547,2612.2,2611.9,0.7906]
[1729651242525,3.44578,2611.9,2611.7,0.7906]
[1729651242682,3.44578,2611.9,2611.4,4.23698]
[1729651242883,3.44578,2611.9,2611.4,7.68332]
[1729651243112,3.44572,2612.0,2611.4,4.23694]
[1729651243318,3.44582,2611.9,2611.4,5.06104918]
[1729651243784,6.89144,2612.0,2611.4,5.06104918]
[1729651244016,3.44577,2611.9,2611.4,5.06104918]
[1729651244520,3.44572,2612.0,2611.4,5.06104918]
[1729651244722,6.89144,2612.0,2611.4,1.61470918]
[1729651244894,3.44585,2611.9,2611.4,5.06108918]
[1729651247813,3.44572,2612.0,2611.4,5.06108918]
[1729651248016,3.44589,2611.8,2611.4,5.06108918]
[1729651248250,6.89148,2612.0,2611.4,5.06108918]
[1729651248454,3.44572,2612.0,2611.4,5.06108918]
[1729651249452,3.44579,2611.9,2611.4,5.06108918]
[1729651249654,3.44579,2611.9,2611.4,5.85764484]
[1729651250146,3.790037,2612.2,2611.4,5.85764484]
[1729651250349,3.44504,2612.5,2611.7,3.44595]
[1729651250350,3.44497,2612.5,2611.7,3.44595]
[1729651250563,0.60040517,2613.0,2611.7,3.44595]
[1729651250564,3.44447,2612.9,2611.9,3.44575]
[1729651250717,3.44523,2612.4,2611.9,4.24230566]
[1729651251110,3.44523,2612.4,2612.0,0.79655566]
[1729651253254,3.44523,2612.4,2612.1,0.79655566]
[1729651254258,3.44497,2612.5,2612.2,1.61235566]
[1729651254824,3.44497,2612.5,2612.2,0.8158]
[1729651255026,3.44497,2612.5,2612.2,1.61235566]
[1729651255227,3.44493,2612.6,2612.2,1.61235566]
[1729651255471,3.445,2612.5,2612.2,1.61235566]
[1729651257639,3.445,2612.5,2612.2,0.8158]
[1729651258745,3.44511,2612.4,2612.2,0.8158]
[1729651261065,3.44511,2612.4,2612.0,0.8158]
[1729651261263,3.44539,2612.2,2612.0,0.8158]
[1729651261869,3.4452,2612.4,2612.0,0.8158]
[1729651262636,3.44519,2612.4,2612.0,0.8158]
[1729651262977,7.29911024,2612.4,2611.8,0.8158]
[1729651263185,3.44601,2611.8,2611.6,1.61235566]
[1729651263347,3.44601,2611.8,2611.6,0.8158]
[1729651263348,3.44603,2611.7,2611.6,0.8158]
[1729651264278,3.44601,2611.8,2611.6,0.8158]
[1729651264779,6.89203,2611.8,2611.6,0.8158]
[1729651265152,3.44601,2611.8,2611.6,0.8158]
[1729651266171,6.892,2611.8,2611.6,0.8158]
[1729651266371,3.44599,2611.8,2611.6,0.8158]
[1729651266576,6.89148,2612.0,2611.6,0.8158]
[1729651266946,3.44572,2612.0,2611.6,0.8158]
[1729651267148,3.4458,2611.9,2611.6,0.8158]
[1729651267692,0.762,2612.4,2611.6,4.2619]
[1729651267900,3.4453,2612.3,2611.8,4.19689]
[1729651268103,0.762,2612.6,2611.7,0.76931012]
[1729651268104,3.4456,2612.1,2611.7,0.76931012]
[1729651268262,3.4456,2612.1,2611.4,3.44631]
[1729651268688,3.4456,2612.1,2611.6,4.19709]
[1729651268689,3.4455,2612.1,2611.6,4.19709]
[1729651269386,3.44534,2612.3,2611.8,3.44589]
[1729651269387,3.44533,2612.3,2611.8,3.44589]
[1729651269598,3.44518,2612.4,2611.9,4.19668]
[1729651269775,3.44497,2612.5,2612.0,0.419668]
[1729651270106,3.44518,2612.4,2612.0,0.419668]
[1729651271957,3.44497,2612.5,2612.0,0.419668]
[1729651271958,3.44524,2612.3,2612.0,0.419668]
[1729651272763,4.20659,2612.8,2611.6,0.79655566]
[1729651272764,3.44557,2612.1,2611.6,4.19709]
[1729651272964,3.44564,2612.0,2611.6,4.19709]
[1729651274793,3.44584,2611.9,2611.6,0.751]
[1729651274998,3.44596,2611.8,2611.6,0.751]
[1729651275815,3.44584,2611.9,2611.6,0.751]
[1729651275973,3.44564,2612.0,2611.6,0.751]
[1729651276307,3.44564,2612.0,2611.6,1.59501957]
[1729651277102,3.44577,2611.9,2611.6,1.59501957]
[1729651279013,3.44565,2612.0,2611.6,1.59501957]
[1729651279208,3.44565,2612.0,2611.6,2.39157523]
[1729651279383,3.44559,2612.1,2611.7,0.59143698]
[1729651279774,3.44578,2611.9,2611.7,0.59143698]
[1729651280077,3.44578,2611.9,2611.6,1.59501957]
[1729651281085,3.44578,2611.9,2611.6,2.39157523]
[1729651282567,6.89118,2612.1,2611.6,2.39157523]
[1729651283106,3.44568,2612.0,2611.6,2.39157523]
[1729651283524,3.44578,2611.9,2611.6,2.39157523]
[1729651283730,3.44578,2611.9,2611.6,1.54755566]
[1729651284430,3.4457,2612.0,2611.6,1.54755566]
[1729651284639,3.44532,2612.3,2611.6,4.99371566]
[1729651284929,3.44565,2612.0,2611.7,0.79655566]
[1729651287200,3.44565,2612.0,2611.8,0.79655566]
[1729651287357,3.44565,2612.0,2611.7,0.79655566]
[1729651288179,3.44565,2612.0,2611.8,0.79655566]
[1729651288367,3.44551,2612.1,2611.8,0.79655566]
[1729651288774,3.44567,2612.0,2611.7,0.79655566]
[1729651289993,3.44576,2611.9,2611.7,0.79655566]
[1729651290558,3.44589,2611.8,2611.7,0.79655566]
[1729651293697,3.44589,2611.8,2611.6,1.54755566]
[1729651296743,3.44589,2611.8,2611.6,0.79655566]
[1729651298279,3.44603,2611.7,2611.6,0.79655566]
[1729651298501,3.44603,2611.7,2611.6,0.80261281]
[1729651298919,3.44629,2611.5,2611.4,0.80261281]
[1729651299224,3.44629,2611.5,2611.3,1.56571281]
[1729651299225,3.44642,2611.4,2611.3,1.56571281]
[1729651299409,3.44642,2611.4,2611.3,0.80261281]
[1729651300599,3.44655,2611.3,2611.2,0.80261281]
[1729651300781,3.44669,2611.2,2611.1,0.80261281]
[1729651302253,3.44655,2611.3,2611.0,0.92819841]
[1729651302254,3.44682,2611.1,2611.0,0.92819841]
[1729651302607,3.44669,2611.2,2611.0,0.92819841]
[1729651303425,3.4468,2611.2,2611.0,0.92819841]
[1729651303949,3.4468,2611.2,2611.0,0.1255856]
[1729651306258,4.26826,2611.3,2611.0,0.1255856]
[1729651310052,0.8217,2611.3,2611.0,0.1255856]
[1729651310262,4.26828,2611.3,2611.0,0.1255856]
[1729651311659,0.8217,2611.3,2611.0,0.1255856]
[1729651312258,3.44643,2611.4,2611.0,0.1255856]
[1729651312464,3.44604,2611.7,2611.1,4.23214]
[1729651312621,3.44624,2611.6,2611.1,4.23214]
[1729651312823,5.1369662,2611.6,2611.1,4.23214]
[1729651313137,3.44624,2611.6,2611.1,4.23214]
[1729651313821,5.1369662,2611.6,2611.1,4.23214]
[1729651314222,5.1367662,2611.7,2611.2,3.4466]
[1729651314418,5.9200862,2611.8,2611.2,3.44669]
[1729651314643,1.6907262,2611.7,2611.2,3.44669]
[1729651314861,5.1367962,2611.7,2611.2,4.24930281]
[1729651315165,3.44607,2611.7,2611.2,7.2924798]
[1729651315525,3.44618,2611.6,2611.2,5.6017536]
[1729651315819,4.22936,2611.8,2611.2,5.6017536]
[1729651316053,6.89194,2611.8,2611.4,0.7854]
[1729651316256,3.44596,2611.8,2611.4,0.7854]
[1729651316750,3.44578,2611.9,2611.4,7.07497718]
[1729651316954,3.44578,2611.9,2611.4,7.87758999]
[1729651317192,5.9198662,2612.0,2611.4,6.18686379]
[1729651317349,3.4459,2611.8,2611.4,6.18686379]
[1729651318086,6.89189,2611.8,2611.4,2.74045379]
[1729651318287,3.44603,2611.7,2611.4,2.74045379]
[1729651318866,5.1365762,2611.9,2611.4,2.74045379]
[1729651319190,5.1365762,2611.9,2611.4,6.18686379]
[1729651319493,3.44591,2611.8,2611.4,2.74045379]
[1729651320995,6.89188,2611.8,2611.4,2.74045379]
[1729651321497,3.44591,2611.8,2611.4,2.74045379]
[1729651322069,6.89193,2611.8,2611.4,2.74045379]
[1729651322269,3.44591,2611.8,2611.4,2.74045379]
[1729651322489,3.44604,2611.7,2611.4,2.74045379]
[1729651323860,3.44604,2611.7,2611.5,0.80261281]
[1729651324260,3.44604,2611.7,2611.4,2.74045379]
[1729651324799,3.44604,2611.7,2611.5,0.80261281]
[1729651325014,3.44591,2611.8,2611.5,0.80261281]
[1729651325209,3.44591,2611.8,2611.5,1.70986416]
[1729651325364,3.44568,2612.0,2611.6,2.4761262]
[1729651325718,3.44568,2612.0,2611.6,6.72488901]
[1729651325890,3.44568,2612.0,2611.6,1.58801281]
[1729651326204,3.44583,2611.9,2611.6,1.58801281]
[1729651326390,3.44583,2611.9,2611.6,3.08991743]
[1729651326699,3.44568,2612.0,2611.6,3.08991743]
[1729651326926,6.89144,2612.0,2611.6,3.08991743]
[1729651327227,3.44568,2612.0,2611.6,3.08991743]
[1729651327695,6.89141,2612.0,2611.6,3.08991743]
[1729651327901,6.89141,2612.0,2611.7,0.94217471]
[1729651328111,3.44568,2612.0,2611.7,0.94217471]
[1729651328290,6.89142,2612.0,2611.7,0.94217471]
[1729651328493,3.84481291,2612.2,2611.7,0.94217471]
[1729651328683,3.44552,2612.1,2611.8,0.68643309]
[1729651329385,0.39937291,2612.2,2611.8,2.37715929]
[1729651329586,3.44557,2612.1,2611.9,0.783]
[1729651330024,3.44551,2612.1,2611.9,0.783]
[1729651331228,1.6907262,2612.1,2611.7,1.58503268]
[1729651331427,3.44589,2611.8,2611.7,0.80203268]
[1729651332001,3.44589,2611.8,2611.6,1.20304902]
[1729651332199,3.44589,2611.8,2611.5,0.783]
[1729651332424,6.8919,2611.8,2611.5,0.783]
[1729651332699,3.44589,2611.8,2611.5,0.783]
[1729651332906,3.44622,2611.6,2611.2,0.783]
[1729651333113,3.44629,2611.5,2611.3,0.422979]
[1729651333295,3.44629,2611.5,2611.2,0.783]
[1729651333296,3.44642,2611.4,2611.2,0.783]
[1729651333501,3.44655,2611.3,2611.2,0.783]
[1729651334016,4.19912,2611.8,2611.2,0.783]
[1729651334017,6.89295,2611.4,2611.2,0.783]
[1729651334403,3.44643,2611.4,2611.2,0.783]
[1729651337101,3.44499,2612.5,2612.0,3.44557]
[1729651337338,5.73459236,2612.8,2612.1,1.127557]
[1729651337542,9.17925236,2612.8,2612.2,3.44537]
[1729651337842,9.17925236,2612.8,2612.1,1.127557]
[1729651337843,3.44459,2612.8,2612.1,1.127557]
[1729651338043,3.44474,2612.7,2612.1,1.127557]
[1729651338203,3.44474,2612.7,2612.2,1.6907262]
[1729651338560,3.44485,2612.6,2612.1,2.8182832]
[1729651338837,3.44485,2612.6,2612.1,4.573047]
[1729651339439,3.44473,2612.7,2612.1,6.2637732]
[1729651339684,3.44465,2612.8,2612.2,5.1360662]
[1729651339838,6.88936,2612.8,2612.2,5.1360662]
[1729651340150,5.1353762,2612.8,2612.2,4.24665498]
[1729651340356,3.44471,2612.7,2612.2,3.44534]
[1729651343450,3.44497,2612.5,2612.1,1.127557]
[1729651343683,3.44535,2612.3,2611.9,1.55711498]
[1729651343860,3.44535,2612.3,2611.9,0.7558]
[1729651344061,6.8907,2612.3,2611.9,0.7558]
[1729651344878,3.44543,2612.2,2611.9,0.7558]
[1729651346346,3.44535,2612.3,2611.9,0.7558]
[1729651346547,3.44534,2612.3,2611.9,0.7558]
[1729651347016,3.44532,2612.3,2611.9,0.7558]
[1729651347523,6.89065,2612.3,2611.9,0.7558]
[1729651347697,3.44538,2612.2,2611.9,0.7558]
[1729651348927,3.44538,2612.2,2611.7,0.7558]
[1729651350197,3.44538,2612.2,2611.7,4.7020595]
[1729651350526,7.69178,2612.4,2611.8,3.44579]
[1729651350688,7.69178,2612.4,2611.8,6.89161]
[1729651350889,4.24658,2612.4,2611.8,3.44579]
[1729651351627,7.69176,2612.4,2611.8,3.44579]
[1729651351824,4.24658,2612.4,2611.7,2.05743448]
[1729651352047,3.44523,2612.3,2611.7,4.7021295]
[1729651352337,3.44523,2612.3,2611.7,5.50344448]
[1729651352631,3.44523,2612.3,2611.7,4.7021295]
[1729651352795,3.44523,2612.3,2611.7,5.50344448]
[1729651353125,3.44523,2612.3,2611.7,4.7021295]
[1729651354036,3.44523,2612.3,2611.7,5.50344448]
[1729651354932,3.44518,2612.4,2611.9,3.44569]
[1729651355136,3.44518,2612.4,2612.0,0.7558]
[1729651356255,3.44526,2612.3,2612.0,0.7558]
[1729651356644,3.44518,2612.4,2612.0,0.7558]
[1729651357444,0.8169,2612.9,2612.0,4.59062269]
[1729651357653,3.44465,2612.8,2612.2,3.44535]
[1729651357948,3.44465,2612.8,2612.3,0.7774]
[1729651357949,3.44492,2612.6,2612.3,0.7774]
[1729651359526,3.44458,2612.8,2612.3,0.7774]
[1729651359527,6.88928,2612.8,2612.3,0.7774]
[1729651359855,3.44478,2612.7,2612.3,0.7774]
[1729651360039,3.44485,2612.6,2612.3,0.7774]
[1729651361014,3.44506,2612.5,2612.1,1.57871498]
[1729651361558,6.88981,2612.6,2612.1,1.57871498]
[1729651362464,6.88981,2612.6,2612.1,0.7774]
[1729651362760,6.88981,2612.6,2612.1,6.78993428]
[1729651362761,3.44485,2612.6,2612.1,6.78993428]
[1729651362918,3.44506,2612.5,2612.1,0.7774]
[1729651363117,3.44506,2612.5,2612.1,1.57871498]
[1729651363452,3.44506,2612.5,2612.1,1.60787524]
[1729651365320,3.44473,2612.7,2612.3,1.57871498]
[1729651365564,3.44473,2612.7,2612.3,0.7774]
[1729651365864,3.44427,2613.1,2612.7,0.7774]
[1729651366013,3.44411,2613.2,2612.8,1.68925224]
[1729651366212,3.44401,2613.3,2612.9,1.68925224]
[1729651366417,3.44401,2613.3,2612.7,4.22205]
[1729651366418,3.44407,2613.2,2612.8,1.68925224]
[1729651367011,3.44401,2613.3,2612.8,1.68925224]
[1729651367012,3.44419,2613.1,2612.8,1.68925224]
[1729651368031,3.44419,2613.1,2612.7,2.46665224]
[1729651368228,3.44419,2613.1,2612.7,0.7774]
[1729651368418,6.88847,2613.1,2612.7,0.7774]
[1729651368818,3.44419,2613.1,2612.7,0.7774]
[1729651369552,6.88845,2613.1,2612.7,0.7774]
[1729651370617,3.44419,2613.1,2612.7,0.7774]
[1729651370815,3.44378,2613.4,2612.7,0.7774]
[1729651371016,3.44443,2613.0,2612.7,0.7774]
[1729651371561,3.4444,2613.0,2612.7,0.7774]
[1729651372321,6.88881,2613.0,2612.7,0.7774]
[1729651372636,3.4444,2613.0,2612.7,0.7774]
[1729651374931,3.44414,2613.2,2612.7,0.7774]
[1729651375140,3.44419,2613.1,2612.7,0.7774]
[1729651375450,3.44414,2613.2,2612.7,0.7774]
[1729651375651,3.44432,2613.0,2612.7,0.7774]
[1729651375967,3.44432,2613.0,2612.7,1.28741576]
[1729651378787,3.44414,2613.2,2612.7,4.73199576]
[1729651379919,3.44414,2613.2,2612.8,3.44456]
[1729651380221,3.4436,2613.6,2612.9,0.83893653]
[1729651380515,3.4436,2613.6,2613.1,4.20656]
[1729651380685,3.44369,2613.5,2613.2,0.420656]
[1729651380896,3.44369,2613.5,2613.1,4.20658]
[1729651381795,3.44369,2613.5,2613.1,0.7624]
[1729651382181,3.44369,2613.5,2613.1,4.20657]
[1729651382620,3.44369,2613.5,2613.1,0.7624]
[1729651383127,3.44369,2613.5,2613.2,0.420671]
[1729651385787,3.44326,2613.8,2613.3,4.20624]
[1729651385982,3.44315,2613.9,2613.5,0.7624]
[1729651386206,3.443,2614.0,2613.5,0.7624]
[1729651386390,3.44313,2613.9,2613.5,1.53361198]
[1729651386611,6.88634,2613.9,2613.5,1.53361198]
[1729651387205,4.26574,2614.3,2613.6,3.51995822]
[1729651387415,3.44292,2614.1,2613.7,0.86981356]
[1729651387920,3.443,2614.0,2613.7,0.86981356]
[1729651388227,3.443,2614.0,2613.7,1.6447066]
[1729651388616,3.44292,2614.1,2613.7,1.6447066]
[1729651388952,6.88589,2614.1,2613.7,1.6447066]
[1729651389104,3.44307,2614.0,2613.7,0.7933]
[1729651389553,3.44292,2614.1,2613.7,0.7933]
[1729651389805,3.44312,2614.0,2613.7,0.7933]
[1729651390422,3.44292,2614.1,2613.7,0.7933]
[1729651390614,3.44292,2614.1,2613.7,0.86981216]
[1729651390845,6.88587,2614.1,2613.8,0.43133322]
[1729651391048,3.44292,2614.1,2613.8,0.43133322]
[1729651391857,3.44263,2614.3,2613.9,0.7933]
[1729651392209,6.88534,2614.3,2613.9,0.7933]
[1729651392557,3.44263,2614.3,2613.9,0.7933]
[1729651393342,3.44274,2614.2,2613.9,0.7933]
[1729651396232,6.88555,2614.2,2613.9,0.7933]
[1729651396558,3.4429,2614.1,2613.9,0.7933]
[1729651397271,3.4429,2614.1,2613.9,2.48025232]
[1729651397652,3.4429,2614.1,2613.9,0.7933]
[1729651397835,3.44322,2613.9,2613.7,0.7933]
[1729651398168,3.44299,2614.0,2613.7,0.7933]
[1729651398371,3.44313,2613.9,2613.7,0.7933]
[1729651398524,3.44326,2613.8,2613.7,2.72827755]
[1729651398724,3.44313,2613.9,2613.7,2.72827755]
[1729651399220,6.88633,2613.9,2613.7,2.72827755]
[1729651399426,3.44313,2613.9,2613.7,2.72827755]
[1729651403262,3.44313,2613.9,2613.7,1.04132523]
[1729651403484,6.88638,2613.9,2613.7,1.04132523]
[1729651404070,3.44313,2613.9,2613.7,1.04132523]
[1729651404441,6.88636,2613.9,2613.7,1.04132523]
[1729651404965,3.44313,2613.9,2613.7,1.04132523]
[1729651405344,3.44313,2613.9,2613.8,0.27282776]
[1729651407276,3.44313,2613.9,2613.7,1.04132523]
[1729651408489,3.443,2614.0,2613.7,1.04132523]
[1729651409192,3.44319,2613.9,2613.7,1.04132523]
[1729651409495,3.44319,2613.9,2613.6,1.68695232]
[1729651410190,3.443,2614.0,2613.6,1.68695232]
[1729651410791,3.44314,2613.9,2613.6,1.68695232]
[1729651410992,3.443,2614.0,2613.6,1.68695232]
[1729651411204,3.44305,2614.0,2613.6,1.68695232]
[1729651411353,3.44305,2614.0,2613.6,2.28813314]
[1729651411756,6.88615,2614.0,2613.6,2.28813314]
[1729651412969,3.44305,2614.0,2613.6,2.28813314]
[1729651413297,3.44313,2613.9,2613.6,2.28813314]
[1729651415083,3.443,2614.0,2613.7,1.68695232]
[1729651417497,3.443,2614.0,2613.7,2.68494163]
[1729651418760,3.443,2614.0,2613.7,0.99798931]
[1729651419497,3.443,2614.0,2613.7,2.68494163]
[1729651420000,0.39926932,2613.9,2613.7,2.68494163]
[1729651423003,0.39926932,2613.9,2613.7,0.99798931]
[1729651423496,0.39926932,2613.9,2613.7,1.79930429]
[1729651423859,0.39926932,2613.9,2613.7,3.48625661]
[1729651426218,3.443,2614.0,2613.7,3.48625661]
[1729651426416,3.443,2614.0,2613.7,2.4882673]
[1729651426623,3.443,2614.0,2613.8,0.80131498]
[1729651428315,3.443,2614.0,2613.9,0.80131498]
[1729651429593,0.8231,2614.1,2613.9,0.80131498]
[1729651429791,3.44299,2614.0,2613.9,0.80131498]
[1729651429989,3.44313,2613.9,2613.8,0.80131498]
[1729651430983,3.44313,2613.9,2613.8,0.80293486]
[1729651431177,3.44313,2613.9,2613.8,1.20197247]
[1729651431979,3.44299,2614.0,2613.8,1.20494444]
[1729651432424,3.44299,2614.0,2613.9,1.20494444]
[1729651432596,0.8231,2614.1,2613.9,1.20494444]
[1729651432597,4.26598,2614.1,2613.9,1.20494444]
[1729651432798,4.26598,2614.1,2614.0,0.80344715]
[1729651433090,3.44282,2614.2,2614.0,0.80344012]
[1729651433281,3.44256,2614.4,2614.1,0.80344012]
[1729651433480,3.44254,2614.4,2614.2,0.80344012]
[1729651434316,3.4426,2614.3,2614.2,0.80344012]
[1729651435675,6.88512,2614.4,2614.2,0.80344012]
[1729651435879,3.44254,2614.4,2614.2,0.80344012]
[1729651436290,3.4426,2614.3,2614.2,0.80344012]
[1729651440239,3.44254,2614.4,2614.1,1.20494444]
[1729651440419,3.4426,2614.3,2614.2,0.80290073]
[1729651442525,3.44273,2614.2,2614.1,0.80290073]
[1729651442726,5.95838232,2614.2,2614.1,0.80290073]
[1729651442946,3.44286,2614.1,2613.9,0.80290073]
[1729651443141,3.44299,2614.0,2613.9,0.80290073]
[1729651443917,3.44313,2613.9,2613.8,0.80290073]
[1729651444931,3.44313,2613.9,2613.8,0.80289946]
[1729651446671,3.44313,2613.9,2613.8,1.20494444]
[1729651448339,3.44313,2613.9,2613.8,0.80292534]
[1729651449944,3.44313,2613.9,2613.8,0.80292579]
[1729651450843,5.12994232,2614.0,2613.8,1.20494444]
[1729651451166,3.44313,2613.9,2613.8,0.80292388]
[1729651453334,3.84239977,2613.9,2613.8,0.80292388]
[1729651453987,3.84239977,2613.9,2613.8,0.80289603]
[1729651454997,4.63319977,2613.9,2613.8,0.80289603]
[1729651457021,3.84239977,2613.9,2613.8,0.80289603]
[1729651461398,0.39926977,2613.9,2613.8,0.80289603]
[1729651461698,3.84239977,2613.9,2613.8,0.80289603]
[1729651463927,3.84239977,2613.9,2613.5,0.7537]
[1729651464284,3.84239977,2613.9,2613.5,1.34213223]
[1729651464627,3.84239977,2613.9,2613.5,2.94769612]
[1729651465126,3.84239977,2613.9,2613.8,0.80278194]
[1729651467881,0.39926977,2613.9,2613.8,0.80278194]
[1729651469071,0.39926977,2613.9,2613.8,0.80270241]
[1729651469268,0.39926977,2613.9,2613.8,0.87429015]
[1729651469475,0.39926977,2613.9,2613.8,2.83356307]
[1729651469778,3.44288,2614.1,2613.8,2.83356307]
[1729651469942,3.44288,2614.1,2613.9,0.80270658]
[1729651471378,3.44283,2614.2,2613.9,0.80270658]
[1729651471379,3.44299,2614.0,2613.9,0.80270658]
[1729651474181,3.39299,2614.0,2613.9,0.80270658]
[1729651477075,3.44283,2614.2,2613.9,0.80270658]
[1729651477283,3.44299,2614.0,2613.9,1.32688993]
[1729651477479,3.44283,2614.2,2613.9,1.32688993]
[1729651477480,6.88568,2614.2,2613.9,1.32688993]
[1729651477697,3.44293,2614.1,2613.9,1.32688993]
[1729651480872,3.44299,2614.0,2613.9,1.32688993]
[1729651482307,3.44293,2614.1,2613.9,1.32688993]
[1729651482718,6.88587,2614.1,2613.9,1.32688993]
[1729651484104,3.44293,2614.1,2613.9,1.32688993]
[1729651484324,3.44293,2614.1,2614.0,1.13132287]
[1729651485208,3.84220371,2614.1,2614.0,1.13132287]
[1729651485815,3.84220371,2614.1,2614.0,1.1316984]
[1729651486183,3.84213371,2614.1,2614.0,0.80305278]
[1729651486631,3.84213371,2614.1,2614.0,0.80305544]
[1729651486994,3.84213371,2614.1,2614.0,0.80308604]
[1729651488523,3.84213371,2614.1,2613.9,1.20417292]
[1729651488880,0.39927371,2614.1,2613.9,1.20417292]
[1729651489085,0.39927371,2614.1,2614.0,1.5606566]
[1729651491587,0.39927371,2614.1,2614.0,0.35648368]
[1729651491788,0.39927371,2614.1,2614.0,1.5606566]
[1729651492287,3.84213371,2614.1,2614.0,1.15971633]
[1729651492687,3.84213371,2614.1,2614.0,1.15971605]
[1729651492882,3.84213371,2614.1,2614.0,0.80323237]
[1729651493831,3.84213371,2614.1,2613.9,1.20417292]
[1729651494048,3.84213371,2614.1,2614.0,0.80321246]
[1729651494531,0.39927371,2614.1,2613.9,1.20417292]
[1729651494717,0.39927371,2614.1,2614.0,1.20417292]
[1729651494922,0.39927371,2614.1,2614.0,1.9049796]
[1729651496848,0.39927371,2614.1,2614.0,2.30637057]
[1729651497587,3.44254,2614.4,2614.0,2.30637057]
[1729651497588,3.44254,2614.4,2614.0,4.80672289]
[1729651497757,3.44254,2614.4,2614.3,0.80300361]
[1729651498244,3.44235,2614.5,2614.3,0.80300361]
[1729651499215,3.44247,2614.4,2614.3,0.80300361]
[1729651499438,3.44247,2614.4,2614.2,0.80300361]
[1729651499739,1.68695232,2614.5,2614.3,0.80300361]
[1729651499925,5.12932232,2614.5,2614.2,1.31573157]
[1729651500240,3.44231,2614.6,2614.3,0.80300361]
[1729651500445,3.44214,2614.7,2614.4,0.80300361]
[1729651500628,3.44214,2614.7,2614.4,1.6411957]
[1729651501025,3.44214,2614.7,2614.5,0.80300361]
[1729651502042,3.44214,2614.7,2614.4,1.6411957]
[1729651502544,5.12909232,2614.7,2614.4,1.6411957]
[1729651503522,3.44223,2614.6,2614.4,1.6411957]
[1729651503721,5.12929232,2614.5,2614.4,0.80300361]
[1729651503898,5.12929232,2614.5,2614.2,1.71723338]
[1729651503899,3.44247,2614.4,2614.3,0.80300361]
[1729651504248,3.4426,2614.3,2614.2,0.80300361]
[1729651504449,3.44273,2614.2,2614.1,0.80300361]
[1729651504619,3.44286,2614.1,2613.9,0.80300361]
[1729651505163,5.12994232,2614.0,2613.9,0.80300361]
[1729651505526,5.93844232,2614.0,2613.9,0.80300361]
[1729651505724,4.25149,2614.0,2613.8,0.80300361]
[1729651508482,3.44313,2613.9,2613.8,0.80300361]
[1729651509827,5.13008232,2613.9,2613.7,0.80300361]
[1729651510028,3.44326,2613.8,2613.7,0.80300361]
[1729651512130,3.44313,2613.9,2613.6,2.89145774]
[1729651512359,3.44296,2614.1,2613.8,1.63246718]
[1729651512533,3.44296,2614.1,2613.9,0.80236718]
[1729651513251,0.39924297,2614.1,2613.9,0.80236718]
[1729651513586,3.84215297,2614.1,2613.9,0.80236718]
[1729651514653,3.84215297,2614.1,2614.0,0.80236718]
[1729651514858,3.84215297,2614.1,2613.9,0.80236718]
[1729651516606,3.84215297,2614.1,2614.0,0.80236718]
[1729651516752,0.39924297,2614.1,2614.0,0.80236718]